fUST/lending_fUST_20240819
["ID","MTS","AMOUNT","RATE_DAILY","PERIOD"]
[335248607,1724033448163,-500.0,0.00016438,2]
[335248608,1724033448172,-500.0,0.00016438,2]
[335248609,1724033448182,-514.46909375,0.00016438,2]
[335248610,1724033448191,-692.43,0.00016438,2]
[335248611,1724033448200,-500.0,0.00016438,2]
[335248612,1724033448209,-500.0,0.00016438,2]
[335248613,1724033448219,-500.0,0.00016438,2]
[335248614,1724033448228,-500.0,0.00016438,2]
[335248615,1724033448238,-500.0,0.00016438,2]
[335248616,1724033448247,-500.0,0.00016438,2]
[335248617,1724033448256,-503.86728125,0.00016438,2]
[335248618,1724033448265,-500.0,0.00016438,2]
[335248619,1724033448274,-500.0,0.00016438,2]
[335248620,1724033448284,-500.0,0.00016438,2]
[335248621,1724033448294,-612.31,0.00016438,2]
[335248622,1724033448303,-151.0,0.00016438,2]
[335248623,1724033448313,-1130.61,0.00016438,2]
[335248624,1724033448323,-500.0,0.00016438,2]
[335248625,1724033448332,-500.0,0.00016438,2]
[335248626,1724033448342,-151.0,0.00016438,2]
[335248627,1724033448351,-270.916917,0.00016438,2]
[335248628,1724033448361,-151.0,0.00016438,2]
[335248629,1724033448370,-153.616846,0.00016438,2]
[335248630,1724033448380,-500.0,0.00016438,2]
[335248631,1724033448389,-500.0,0.00016438,2]
[335248632,1724033448400,-1155.878446,0.00016438,2]
[335248633,1724033448412,-1155.878446,0.00016438,2]
[335248634,1724033448422,-1155.878446,0.00016438,2]
[335248635,1724033448431,-500.0,0.00016438,2]
[335248636,1724033448441,-1155.878446,0.00016438,2]
[335248637,1724033448451,-1155.878446,0.00016438,2]
[335248638,1724033448461,-500.0,0.00016438,2]
[335248639,1724033448471,-716.204897,0.00016438,2]
[335248640,1724033448480,-500.0,0.00016438,2]
[335248641,1724033448490,-716.204892,0.00016438,2]
[335248642,1724033448499,-506.85263888,0.00016438,2]
[335248643,1724033448509,-1155.878446,0.00016438,2]
[335248644,1724033448519,-180.24542059,0.00016438,2]
[335248645,1724033448529,-1155.878446,0.00016438,2]
[335248646,1724033448539,-1155.878446,0.00016438,2]
[335248647,1724033448548,-1155.878446,0.00016438,2]
[335248648,1724033448558,-1155.87844973,0.00016438,2]
[335248649,1724033448567,-151.0,0.00016438,2]
[335248650,1724033448577,-190.038474,0.00016438,2]
[335248651,1724033448587,-646.16712829,0.00016438,2]
[335248652,1724033448597,-504.20366111,0.00016438,2]
[335248653,1724033448606,-500.0,0.00016438,2]
[335248654,1724033448616,-710.85,0.00016438,2]
[335248655,1724033448625,-501.66108999,0.00016438,2]
[335248656,1724033448635,-504.77979138,0.00016438,2]
[335248657,1724033448644,-674.41,0.00016438,2]
[335248658,1724033448655,-500.0,0.00016438,2]
[335248659,1724033448665,-500.0,0.00016438,2]
[335248660,1724033448687,-500.0,0.00016438,2]
[335248661,1724033448706,-500.0,0.00016438,2]
[335248662,1724033448725,-783.698813,0.00016438,2]
[335248663,1724033448745,-783.698813,0.00016438,2]
[335248664,1724033448765,-783.698813,0.00016438,2]
[335248665,1724033448782,-783.698813,0.00016438,2]
[335248666,1724033448801,-783.698813,0.00016438,2]
[335248667,1724033448816,-783.698813,0.00016438,2]
[335248668,1724033448832,-783.698813,0.00016438,2]
[335248669,1724033448851,-783.698813,0.00016438,2]
[335248670,1724033448872,-381.72468445,0.00016438,2]
[335248671,1724033448884,-783.698813,0.00016438,2]
[335248672,1724033448901,-500.0,0.00016438,2]
[335248673,1724033448915,-783.698814,0.00016438,2]
[335248674,1724033448934,-151.0,0.00016438,2]
[335248675,1724033448949,-497.98880472,0.00016438,2]
[335248676,1724033448962,-199.17879,0.00016438,2]
[335248677,1724033448980,-498.79283329,0.00016438,2]
[335248678,1724033448996,-501.80816247,0.00016438,2]
[335248679,1724033449011,-507.9383321,0.00016438,2]
[335248680,1724033449026,-530.14840223,0.00016438,2]
[335248681,1724033449042,-503.63340238,0.00016438,2]
[335248682,1724033449057,-502.32926269,0.00016438,2]
[335248683,1724033449071,-500.0,0.00016438,2]
[335248684,1724033449085,-500.0,0.00016438,2]
[335248685,1724033449100,-500.0,0.00016438,2]
[335248686,1724033449114,-364.727159,0.00016438,2]
[335248687,1724033449129,-500.0,0.00016438,2]
[335248688,1724033449144,-500.0,0.00016438,2]
[335248689,1724033449165,-500.0,0.00016438,2]
[335248690,1724033449180,-500.0,0.00016438,2]
[335248691,1724033449194,-500.0,0.00016438,2]
[335248692,1724033449209,-500.0,0.00016438,2]
[335248693,1724033449223,-151.0,0.00016438,2]
[335248694,1724033449238,-151.0,0.00016438,2]
[335248695,1724033449252,-503.84,0.00016438,2]
[335248696,1724033449267,-503.95412494,0.00016438,2]
[335248697,1724033449281,-151.0,0.00016438,2]
[335248698,1724033449298,-214.886552,0.00016438,2]
[335248699,1724033449313,-500.0,0.00016438,2]
[335248700,1724033449328,-633.38913776,0.00016438,2]
[335248701,1724033449342,-198.659333,0.00016438,2]
[335248702,1724033449357,-171.9492132,0.00016438,2]
[335248703,1724033449372,-198.659333,0.00016438,2]
[335248704,1724033449386,-500.0,0.00016438,2]
[335248705,1724033449402,-198.659333,0.00016438,2]
[335248706,1724033449416,-198.659333,0.00016438,2]
[335248707,1724033449430,-500.0,0.00016438,2]
[335248708,1724033449445,-500.0,0.00016438,2]
[335248709,1724033449459,-501.57496952,0.00016438,2]
[335248710,1724033449473,-500.0,0.00016438,2]
[335248711,1724033449488,-198.659333,0.00016438,2]
[335248712,1724033449502,-198.659333,0.00016438,2]
[335248713,1724033449516,-505.3731894,0.00016438,2]
[335248714,1724033449531,-198.659333,0.00016438,2]
[335248715,1724033449544,-198.659331,0.00016438,2]
[335248716,1724033449559,-500.89699519,0.00016438,2]
[335248717,1724033449574,-500.0,0.00016438,2]
[335248718,1724033449589,-508.52997352,0.00016438,2]
[335248719,1724033449599,-500.0,0.00016438,2]
[335248720,1724033449609,-500.0,0.00016438,2]
[335248721,1724033449618,-514.01504811,0.00016438,2]
[335248722,1724033449628,-635.84149051,0.00016438,2]
[335248723,1724033449637,-500.0,0.00016438,2]
[335248724,1724033449650,-500.0,0.00016438,2]
[335248725,1724033449831,-504.11922932,0.00016438,2]
[335248726,1724033449860,-500.0,0.00016438,2]
[335248727,1724033449872,-504.10284579,0.00016438,2]
[335248728,1724033449885,-501.50911944,0.00016438,2]
[335248729,1724033449899,-504.25787178,0.00016438,2]
[335248730,1724033449911,-502.11210097,0.00016438,2]
[335248731,1724033449921,-504.07242754,0.00016438,2]
[335248732,1724033449931,-510.84377627,0.00016438,2]
[335248733,1724033449941,-500.0,0.00016438,2]
[335248734,1724033449950,-505.42376869,0.00016438,2]
[335248735,1724033449961,-500.0,0.00016438,2]
[335248736,1724033449975,-500.0,0.00016438,2]
[335248737,1724033449984,-151.0,0.00016438,2]
[335248738,1724033449994,-151.0,0.00016438,2]
[335248739,1724033450003,-151.0,0.00016438,2]
[335248740,1724033450014,-151.0,0.00016438,2]
[335248741,1724033450024,-500.0,0.00016438,2]
[335248742,1724033450034,-509.03018034,0.00016438,2]
[335248743,1724033450046,-151.0,0.00016438,2]
[335248744,1724033450057,-228.372644,0.00016438,2]
[335248745,1724033450069,-989.34,0.00016438,2]
[335248746,1724033450079,-536.33,0.00016438,2]
[335248747,1724033450089,-741.08,0.00016438,2]
[335248748,1724033450101,-504.49097661,0.00016438,2]
[335248749,1724033450111,-1429.649562,0.00016438,2]
[335248750,1724033450120,-1429.649562,0.00016438,2]
[335248751,1724033450130,-1429.649562,0.00016438,2]
[335248752,1724033450140,-1429.649562,0.00016438,2]
[335248753,1724033450153,-501.34344847,0.00016438,2]
[335248754,1724033450165,-1429.649562,0.00016438,2]
[335248755,1724033450175,-1429.649562,0.00016438,2]
[335248756,1724033450185,-1429.649562,0.00016438,2]
[335248757,1724033450195,-1429.649561,0.00016438,2]
[335248758,1724033450205,-501.46778864,0.00016438,2]
[335248759,1724033450216,-832.28,0.00016438,2]
[335248760,1724033450226,-151.0,0.00016438,2]
[335248761,1724033450236,-1000.0,0.00016438,2]
[335248762,1724033450246,-151.0,0.00016438,2]
[335248763,1724033450256,-151.0,0.00016438,2]
[335248764,1724033450267,-633.56859619,0.00016438,2]
[335248765,1724033450278,-500.0,0.00016438,2]
[335248766,1724033450290,-501.53325687,0.00016438,2]
[335248767,1724033450299,-195.381127,0.00016438,2]
[335248768,1724033450309,-500.0,0.00016438,2]
[335248769,1724033450318,-500.0,0.00016438,2]
[335248770,1724033450328,-500.86783738,0.00016438,2]
[335248771,1724033450338,-690.34,0.00016438,2]
[335248772,1724033450348,-500.0,0.00016438,2]
[335248773,1724033450358,-502.52752899,0.00016438,2]
[335248774,1724033450367,-503.03143655,0.00016438,2]
[335248775,1724033450377,-500.0,0.00016438,2]
[335248776,1724033450386,-500.0,0.00016438,2]
[335248777,1724033450396,-500.0,0.00016438,2]
[335248778,1724033450408,-500.0,0.00016438,2]
[335248779,1724033450418,-500.0,0.00016438,2]
[335248780,1724033450428,-785.63,0.00016438,2]
[335248781,1724033450437,-500.0,0.00016438,2]
[335248782,1724033450447,-500.0,0.00016438,2]
[335248783,1724033450457,-500.0,0.00016438,2]
[335248784,1724033450466,-500.0,0.00016438,2]
[335248785,1724033450476,-500.0,0.00016438,2]
[335248786,1724033450486,-500.0,0.00016438,2]
[335248787,1724033450496,-500.0,0.00016438,2]
[335248788,1724033450505,-500.0,0.00016438,2]
[335248789,1724033450515,-483.680537,0.00016438,2]
[335248790,1724033450525,-500.0,0.00016438,2]
[335248791,1724033450534,-500.0,0.00016438,2]
[335248792,1724033450543,-483.680537,0.00016438,2]
[335248793,1724033450553,-483.680537,0.00016438,2]
[335248794,1724033450564,-500.0,0.00016438,2]
[335248795,1724033450574,-500.0,0.00016438,2]
[335248796,1724033450586,-500.0,0.00016438,2]
[335248797,1724033450596,-483.680537,0.00016438,2]
[335248798,1724033450606,-500.0,0.00016438,2]
[335248799,1724033450617,-483.680537,0.00016438,2]
[335248800,1724033450627,-500.0,0.00016438,2]
[335248801,1724033450637,-479.08474328,0.00016438,2]
[335248802,1724033450650,-483.680539,0.00016438,2]
[335248803,1724033450660,-500.0,0.00016438,2]
[335248804,1724033450670,-514.27191375,0.00016438,2]
[335248805,1724033450681,-501.01892002,0.00016438,2]
[335248806,1724033450692,-422.985673,0.00016438,2]
[335248807,1724033450702,-500.0,0.00016438,2]
[335248808,1724033450712,-422.985673,0.00016438,2]
[335248809,1724033450723,-422.985673,0.00016438,2]
[335248810,1724033450734,-500.0,0.00016438,2]
[335248811,1724033450743,-500.0,0.00016438,2]
[335248812,1724033450753,-860.89,0.00016438,2]
[335248813,1724033450764,-422.985673,0.00016438,2]
[335248814,1724033450774,-500.0,0.00016438,2]
[335248815,1724033450785,-422.985673,0.00016438,2]
[335248816,1724033450795,-422.985671,0.00016438,2]
[335248817,1724033450805,-500.0,0.00016438,2]
[335248818,1724033450815,-500.0,0.00016438,2]
[335248819,1724033450826,-500.0,0.00016438,2]
[335248820,1724033450837,-500.0,0.00016438,2]
[335248821,1724033450848,-500.0,0.00016438,2]
[335248822,1724033450858,-500.0,0.00016438,2]
[335248823,1724033450868,-500.0,0.00016438,2]
[335248824,1724033450879,-6624.65,0.00016438,2]
[335248825,1724033450890,-6624.65,0.00016438,2]
[335248826,1724033450900,-6624.65,0.00016438,2]
[335248827,1724033450909,-6624.65,0.00016438,2]
[335248828,1724033450919,-6624.65,0.00016438,2]
[335248829,1724033450929,-500.0,0.00016438,2]
[335248830,1724033450940,-6624.65,0.00016438,2]
[335248831,1724033450950,-6624.65,0.00016438,2]
[335248832,1724033450959,-6624.65,0.00016438,2]
[335248833,1724033450973,-6624.65,0.00016438,2]
[335248834,1724033450983,-508.68945879,0.00016438,2]
[335248835,1724033450993,-2074.59565425,0.00016438,2]
[335248836,1724033451241,-3000.0,0.00016438,2]
[335248837,1724033451833,-442.66285607,0.00016438,2]
[335248838,1724033451845,-1107.39148968,0.00016438,2]
[335248839,1724033451857,-6624.65,0.00016438,2]
[335248840,1724033451868,-2254.32787744,0.00016438,2]
[335248841,1724033451882,-4370.32212256,0.00016438,2]
[335248842,1724033451892,-6624.65,0.00016438,2]
[335248843,1724033451903,-6624.65,0.00016438,2]
[335248844,1724033451914,-6624.65,0.00016438,2]
[335248845,1724033451923,-6624.65,0.00016438,2]
[335248846,1724033451933,-6624.65,0.00016438,2]
[335248847,1724033451942,-500.0,0.00016438,2]
[335248848,1724033451951,-6624.65,0.00016438,2]
[335248849,1724033451962,-6624.65,0.00016438,2]
[335248850,1724033451975,-500.0,0.00016438,2]
[335248851,1724033451987,-6624.65,0.00016438,2]
[335248852,1724033451998,-6624.65,0.00016438,2]
[335248853,1724033452009,-6624.65,0.00016438,2]
[335248854,1724033452019,-6624.65,0.00016438,2]
[335248855,1724033452029,-621.54,0.00016438,2]
[335248856,1724033452039,-6624.68803596,0.00016438,2]
[335248857,1724033452050,-500.0,0.00016438,2]
[335248858,1724033452059,-500.0,0.00016438,2]
[335248859,1724033452191,-500.0,0.00016438,2]
[335248860,1724033452202,-500.0,0.00016438,2]
[335248861,1724033452211,-500.0,0.00016438,2]
[335248862,1724033452221,-650.06,0.00016438,2]
[335248863,1724033452232,-500.0,0.00016438,2]
[335248864,1724033452241,-500.0,0.00016438,2]
[335248865,1724033452251,-500.0,0.00016438,2]
[335248866,1724033452260,-436.60110986,0.00016438,2]
[335248867,1724033452270,-511.62332892,0.00016438,2]
[335248868,1724033452279,-919.360107,0.00016438,2]
[335248869,1724033452290,-919.360107,0.00016438,2]
[335248870,1724033452299,-919.360107,0.00016438,2]
[335248871,1724033452308,-500.0,0.00016438,2]
[335248872,1724033452318,-1297.72,0.00016438,2]
[335248873,1724033452327,-919.360107,0.00016438,2]
[335248874,1724033452336,-500.0,0.00016438,2]
[335248875,1724033452346,-500.0,0.00016438,2]
[335248876,1724033452355,-500.0,0.00016438,2]
[335248877,1724033452365,-919.360107,0.00016438,2]
[335248878,1724033452374,-1019.53,0.00016438,2]
[335248879,1724033452384,-919.360107,0.00016438,2]
[335248880,1724033452394,-919.360107,0.00016438,2]
[335248881,1724033452404,-506.54517082,0.00016438,2]
[335248882,1724033452413,-919.36011,0.00016438,2]
[335248883,1724033452423,-500.0,0.00016438,2]
[335248884,1724033452432,-509.50656621,0.00016438,2]
[335248885,1724033452441,-500.0,0.00016438,2]
[335248886,1724033452452,-500.0,0.00016438,2]
[335248887,1724033452465,-1470.182121,0.00016438,2]
[335248888,1724033452474,-1470.182121,0.00016438,2]
[335248889,1724033452484,-500.0,0.00016438,2]
[335248890,1724033452493,-1470.182121,0.00016438,2]
[335248891,1724033452503,-1470.182121,0.00016438,2]
[335248892,1724033452512,-1217.6,0.00016438,2]
[335248893,1724033452521,-521.07619031,0.00016438,2]
[335248894,1724033452530,-500.0,0.00016438,2]
[335248895,1724033452539,-501.11244673,0.00016438,2]
[335248896,1724033452548,-500.0,0.00016438,2]
[335248897,1724033452558,-500.0,0.00016438,2]
[335248898,1724033452567,-500.0,0.00016438,2]
[335248899,1724033452576,-500.0,0.00016438,2]
[335248900,1724033452585,-500.0,0.00016438,2]
[335248901,1724033452595,-500.0,0.00016438,2]
[335248902,1724033452604,-500.0,0.00016438,2]
[335248903,1724033452613,-500.0,0.00016438,2]
[335248904,1724033452622,-1470.182121,0.00016438,2]
[335248905,1724033452633,-310.8573923,0.00016438,2]
[335248906,1724033452642,-500.0,0.00016438,2]
[335248907,1724033452651,-1470.182121,0.00016438,2]
[335248908,1724033452661,-1470.182121,0.00016438,2]
[335248909,1724033452670,-1470.18212,0.00016438,2]
[335248910,1724033452680,-500.0,0.00016438,2]
[335248911,1724033452690,-1051.64,0.00016438,2]
[335248912,1724033452700,-766.82,0.00016438,2]
[335248913,1724033452710,-500.0,0.00016438,2]
[335248914,1724033452720,-334.59892924,0.00016438,2]
[335248915,1724033452730,-500.0,0.00016438,2]
[335248916,1724033452739,-500.0,0.00016438,2]
[335248917,1724033452748,-500.0,0.00016438,2]
[335248918,1724033452758,-501.2183351,0.00016438,2]
[335248919,1724033452767,-500.0,0.00016438,2]
[335248920,1724033452777,-500.0,0.00016438,2]
[335248921,1724033452788,-500.0,0.00016438,2]
[335248922,1724033452798,-506.74618252,0.00016438,2]
[335248923,1724033452808,-1364.310846,0.00016438,2]
[335248924,1724033452819,-1364.310846,0.00016438,2]
[335248925,1724033452828,-1364.310846,0.00016438,2]
[335248926,1724033452838,-1364.310846,0.00016438,2]
[335248927,1724033452848,-1862.215653,0.00016438,2]
[335248928,1724033452858,-1862.215653,0.00016438,2]
[335248929,1724033452869,-1862.215653,0.00016438,2]
[335248930,1724033452878,-594.42,0.00016438,2]
[335248931,1724033452888,-178.886012,0.00016438,2]
[335248932,1724033452898,-1862.215653,0.00016438,2]
[335248933,1724033452908,-178.886012,0.00016438,2]
[335248934,1724033452918,-178.886012,0.00016438,2]
[335248935,1724033452928,-1171.0564946,0.00016438,2]
[335248936,1724033453697,-600.88577429,0.00012782,2]
[335248937,1724033453707,-2581.32294383,0.00013016,2]
[335248957,1724034433151,-298.0,8.86e-05,2]
[335248958,1724034433173,-1309.81440916,8.861e-05,2]
[335248959,1724034436101,-1730.95077047,8.861e-05,2]
[335248981,1724034519602,931.19911147,0.0002,120]
[335248988,1724034567108,-5201.35042952,8.352e-05,2]
[335248989,1724034567131,-12875.51460134,8.436e-05,2]
[335248990,1724034567154,-55471.09586993,8.521e-05,2]
[335248991,1724034567176,-246.01133096,8.8e-05,2]
[335248992,1724034567198,-154.69833824,8.861e-05,2]
[335248993,1724034567219,-939.00420277,8.861e-05,2]
[335248994,1724034567241,-405.4347584,8.861e-05,2]
[335248995,1724034567263,-167.30718927,8.861e-05,2]
[335248996,1724034567289,-245.37793569,8.861e-05,2]
[335248997,1724034567311,-2112.50283852,8.861e-05,2]
[335248998,1724034567333,-170.46072949,8.861e-05,2]
[335248999,1724034567356,-1511.50458572,8.861e-05,2]
[335249000,1724034567378,-2112.50283852,8.861e-05,2]
[335249001,1724034567400,-229.70554206,8.861e-05,2]
[335249002,1724034567423,-3619.9309493,8.861e-05,2]
[335249003,1724034567445,-4721.04600346,8.861e-05,2]
[335249004,1724034567467,-275.60379811,8.861e-05,2]
[335249005,1724034567490,-23350.38884956,9.469e-05,2]
[335249113,1724034638648,-820.12008693,9.374e-05,2]
[335249115,1724034638658,-1549.61115044,9.469e-05,2]
[335249117,1724034638667,-163.686051,9.54e-05,2]
[335249119,1724034638677,-163.686051,9.573e-05,2]
[335249121,1724034638686,-163.686051,9.606e-05,2]
[335249123,1724034638695,-163.686051,9.639e-05,2]
[335249125,1724034638704,-163.686051,9.672e-05,2]
[335249127,1724034638713,-163.686051,9.705e-05,2]
[335249128,1724034638722,-163.686051,9.739e-05,2]
[335249129,1724034638732,-163.686051,9.772e-05,2]
[335249131,1724034638741,-163.686051,9.805e-05,2]
[335249133,1724034638750,-163.686051,9.838e-05,2]
[335249135,1724034638759,-163.686051,9.871e-05,2]
[335249137,1724034638769,-3408.44426957,9.904e-05,2]
[335249139,1724034638778,-163.686051,9.904e-05,2]
[335249141,1724034638788,-163.686051,9.938e-05,2]
[335249143,1724034638797,-163.686051,9.971e-05,2]
[335249145,1724034638806,-21350.07874587,0.0001,2]
[335249147,1724034638815,-163.686051,0.00010004,2]
[335249149,1724034638825,-163.686051,0.00010037,2]
[335249151,1724034638834,-234.097286,0.00010065,2]
[335249153,1724034638844,-234.097286,0.00010116,2]
[335249155,1724034638854,-535.629208,0.00010738,2]
[335249157,1724034638863,-185.84,0.00010959,2]
[335249159,1724034638873,-154.87,0.00010959,2]
[335249161,1724034638883,-774.37,0.00010959,2]
[335249163,1724034638893,-3408.44426957,0.0001133,2]
[335249165,1724034638903,-20794.87454007,0.00011842,2]
[335249166,1724034638912,-544.00882293,0.00011894,2]
[335249167,1724034638922,-66350.6109733,0.0001211,2]
[335249168,1724034638931,-8278.33183396,0.00012356,2]
[335249169,1724034638941,-3408.44426957,0.00012756,2]
[335249170,1724034638952,-66350.6109733,0.00012772,2]
[335249171,1724034638962,-600.88577429,0.00012782,2]
[335249172,1724034638973,-600.88577429,0.00012782,2]
[335249173,1724034638983,-723.11623501,0.00012985,2]
[335249174,1724034638992,-2146.11113203,0.00012989,2]
[335249175,1724034639002,-1500.0,0.00012989,2]
[335249176,1724034639011,-2169.84668555,0.00012999,2]
[335249177,1724034639020,-728.79489661,0.00012999,2]
[335249178,1724034639030,-223.95953519,0.00012999,2]
[335249179,1724034639039,-688.676981,0.00012999,2]
[335249180,1724034639049,-862.44048895,0.00013,2]
[335249181,1724034639058,-66350.6109733,0.00013006,2]
[335249182,1724034639068,-155.23918905,0.00013016,2]
[335249183,1724034639077,-12893.40956978,0.00013016,2]
[335249184,1724034639086,-502.86842594,0.00013025,2]
[335249185,1724034639096,-155.09782268,0.00013051,2]
[335249186,1724034639105,-196.08773688,0.00013051,2]
[335249187,1724034639115,-278.60858392,0.00013051,2]
[335249188,1724034639124,-155.01544717,0.00013051,2]
[335249189,1724034639133,-522.57826765,0.00013051,2]
[335249190,1724034639142,-155.62406758,0.00013333,2]
[335249191,1724034639151,-154.69833824,0.00013333,2]
[335249192,1724034639161,-157.33337779,0.00013333,2]
[335249193,1724034639170,-195.63337011,0.00013333,2]
[335249194,1724034639180,-154.69833824,0.00013333,2]
[335249195,1724034639189,-496.1156991,0.00013333,2]
[335249196,1724034639198,-154.69833824,0.00013477,2]
[335249197,1724034639207,-160.85673783,0.00013477,2]
[335249198,1724034639216,-810.36618232,0.00013477,2]
[335249199,1724034639225,-155.23257901,0.00013477,2]
[335249200,1724034639235,-898.70545475,0.00013496,2]
[335249201,1724034639244,-158.41733487,0.00013497,2]
[335249202,1724034639254,-817.51538182,0.00013599,2]
[335249203,1724034639263,-342.65845262,0.00013599,2]
[335249204,1724034639272,-155.12307709,0.00013688,2]
[335249205,1724034639281,-154.83839525,0.00013688,2]
[335249206,1724034639291,-500.0,0.00013698,2]
[335249207,1724034639300,-500.0,0.00013698,2]
[335249208,1724034639312,-322.17755215,0.00013698,2]
[335249209,1724034639321,-780.05358786,0.00013698,2]
[335249210,1724034639332,-277.561512,0.00013699,2]
[335249211,1724034639341,-500.0,0.00013699,2]
[335249212,1724034639351,-500.0,0.00013699,2]
[335249213,1724034639360,-500.0,0.00013699,2]
[335249214,1724034639369,-500.0,0.00013699,2]
[335249215,1724034639379,-500.0,0.00013699,2]
[335249216,1724034639389,-500.0,0.00013699,2]
[335249217,1724034639398,-500.0,0.00013699,2]
[335249218,1724034639407,-500.0,0.00013699,2]
[335249219,1724034639417,-500.0,0.00013699,2]
[335249220,1724034639428,-500.0,0.00013699,2]
[335249221,1724034639438,-500.0,0.00013699,2]
[335249222,1724034639448,-500.0,0.00013699,2]
[335249223,1724034639458,-500.0,0.00013699,2]
[335249224,1724034639469,-500.0,0.00013699,2]
[335249225,1724034639479,-500.0,0.00013699,2]
[335249226,1724034639491,-340.86701572,0.00013699,2]
[335249227,1724034639502,-500.0,0.00013699,2]
[335249228,1724034639513,-500.0,0.00013699,2]
[335249229,1724034639524,-500.0,0.00013699,2]
[335249230,1724034639534,-500.0,0.00013699,2]
[335249231,1724034639545,-500.0,0.00013699,2]
[335249232,1724034639554,-500.0,0.00013699,2]
[335249233,1724034639565,-500.0,0.00013699,2]
[335249234,1724034639576,-500.0,0.00013699,2]
[335249235,1724034639587,-500.0,0.00013699,2]
[335249236,1724034639599,-500.0,0.00013699,2]
[335249237,1724034639610,-500.0,0.00013699,2]
[335249238,1724034639621,-500.0,0.00013699,2]
[335249239,1724034639631,-154.91102718,0.00013971,2]
[335249240,1724034639642,-665.1114012,0.00013971,2]
[335249241,1724034639653,-20715.93667635,0.00014,4]
[335249242,1724034639662,-3408.44426957,0.00014181,2]
[335249243,1724034639675,-154.69833824,0.00014245,2]
[335249244,1724034639685,-327.277269,0.00014247,2]
[335249245,1724034639694,-358.190943,0.00014795,2]
[335249246,1724034639705,-12886.69861989,0.00015,2]
[335249247,1724034639715,-953.38755458,0.00015288,2]
[335249248,1724034639726,-260.9269844,0.00015342,2]
[335249249,1724034639736,-1110.9613583,0.00015379,2]
[335249250,1724034639749,-151.0,0.00015413,2]
[335249251,1724034639759,-199.17879,0.00015413,2]
[335249252,1724034639769,-151.0,0.00015413,2]
[335249253,1724034639779,-151.0,0.00015413,2]
[335249254,1724034639791,-66350.6109733,0.00015413,2]
[335249255,1724034639803,-2898.98935929,0.00015599,2]
[335249256,1724034639813,-3408.44426957,0.00015607,2]
[335249257,1724034639823,-66350.6109733,0.00015657,2]
[335249258,1724034639836,-88888.0,0.00015667,2]
[335249259,1724034639847,-151.0,0.00015667,2]
[335249260,1724034639858,-151.0,0.00015667,2]
[335249261,1724034639867,-151.0,0.00015667,2]
[335249262,1724034639877,-576.34502091,0.00015678,2]
[335249263,1724034639888,-334.46860774,0.00015707,7]
[335249264,1724034639898,-500.0,0.00015712,7]
[335249265,1724034639911,-500.0,0.00015712,7]
[335249266,1724034639924,-500.0,0.00015712,7]
[335249267,1724034639935,-500.0,0.00015712,7]
[335249268,1724034639944,-500.0,0.00015712,7]
[335249269,1724034639954,-500.0,0.00015712,7]
[335249270,1724034639964,-500.0,0.00015712,7]
[335249272,1724034639975,-500.0,0.00015712,7]
[335249274,1724034639986,-191.82,0.00015712,7]
[335249276,1724034639995,-500.0,0.00015712,7]
[335249277,1724034640004,-500.0,0.00015712,7]
[335249278,1724034640016,-500.0,0.00015712,7]
[335249279,1724034640026,-500.0,0.00015712,7]
[335249280,1724034640038,-500.0,0.00015712,7]
[335249281,1724034640048,-500.0,0.00015712,7]
[335249282,1724034640058,-500.0,0.00015712,7]
[335249283,1724034640067,-500.0,0.00015712,7]
[335249284,1724034640077,-500.0,0.00015712,7]
[335249286,1724034640087,-500.0,0.00015712,7]
[335249288,1724034640098,-500.0,0.00015712,7]
[335249290,1724034640109,-500.0,0.00015712,7]